[Event "EWIBCC 2019"]
[Site "Monte-Carlo"]
[Date "2019.11.29"]
[Round "8.12"]
[White "Reizniece-Ozola, Dana"]
[Black "Janzelj, Lara"]
[Result "1-0"]
[ECO "D94"]
[WhiteElo "2305"]
[BlackElo "2158"]
[Annotator "ChessBase"]
[PlyCount "85"]
[EventDate "2019.11.29"]
[EventType "swiss"]
[EventCountry "MNC"]
[SourceTitle "playchess.com"]
[Source "ChessBase"]
[SourceQuality "1"]
[TimeControl "180+2"]

1. c4 {[%emt 0:00:00]} c6 {[%emt 0:00:00]} 2. Nf3 {[%emt 0:00:02]} d5 {[%emt 0:00:00]} 3. e3 {[%emt 0:00:01]} Nf6 {[%emt 0:00:00]} 4. Nc3 {[%emt 0:00:02]} g6 {[%emt 0:00:02]} 5. d4 {[%emt 0:00:08]} Bg7 {[%emt 0:00:01]} 6. Be2 {[%emt 0:00:00]} O-O {[%emt 0:00:02]} 7. O-O {[%emt 0:00:02]} Nbd7 {[%emt 0:00:06]} 8. b3 {[%emt 0:00:07]} Ne4 {[%emt 0:00:05]} 9. Bb2 {[%emt 0:00:01]} Ndf6 {[%emt 0:00:04]} 10. Rc1 {[%emt 0:00:04]} a6 {[%emt 0:00:06]} 11. Ne5 {[%emt 0:00:02]} Nxc3 {[%emt 0:00:13]} 12. Bxc3 {[%emt 0:00:04]} Ne4 {[%emt 0:00:01]} 13. Bb2 {[%emt 0:00:09]} Qa5 {[%emt 0:00:27]} 14. a3 {[%emt 0:00:16]} Be6 {[%emt 0:00:12]} 15. b4 {[%emt 0:00:05]} Qd8 {[%emt 0:00:01]} 16. cxd5 {[%emt 0:00:22]} Bxd5 {[%emt 0:00:23]} 17. f3 {[%emt 0:00:07]} Nd6 {[%emt 0:00:03]} 18. e4 {[%emt 0:00:14]} Be6 {[%emt 0:00:02]} 19. Qc2 {[%emt 0:00:13]} Nb5 {[%emt 0:00:16]} 20. Rfd1 {[%emt 0:00:04]} Bh6 {[%emt 0:00:01]} 21. Rb1 {[%emt 0:00:22]} Be3+ {[%emt 0:00:18]} 22. Kh1 {[%emt 0:00:01]} Qb6 {[%emt 0:00:28]} 23. Qd3 {[%emt 0:00:17]} Bh6 {[%emt 0:00:03]} 24. a4 {[%emt 0:00:06]} Nd6 {[%emt 0:00:05]} 25. d5 {[%emt 0:00:15]} cxd5 {[%emt 0:00:03]} 26. exd5 {[%emt 0:00:01]} Bf5 {[%emt 0:00:01]} 27. Qc3 {[%emt 0:00:01]} Rac8 {[%emt 0:00:09]} 28. Nc4 {[%emt 0:00:04]} f6 {[%emt 0:00:16]} 29. Nxb6 {[%emt 0:00:04]} Rxc3 {[%emt 0:00:01]} 30. Bxc3 {[%emt 0:00:01]} Bxb1 {[%emt 0:00:02]} 31. Rxb1 {[%emt 0:00:01]} Nf5 {[%emt 0:00:07]} 32. b5 {[%emt 0:00:04]} Rd8 {[%emt 0:00:03]} 33. bxa6 {[%emt 0:00:02]} bxa6 {[%emt 0:00:01]} 34. Bxa6 {[%emt 0:00:02]} Be3 {[%emt 0:00:02]} 35. a5 {[%emt 0:00:03]} Bc5 {[%emt 0:00:05]} 36. Bb7 {[%emt 0:00:07]} Nd6 {[%emt 0:00:05]} 37. Bc6 {[%emt 0:00:03]} Rb8 {[%emt 0:00:07]} 38. h3 {[%emt 0:00:06]} Nc4 {[%emt 0:00:01]} 39. Rc1 {[%emt 0:00:13]} Nxb6 {[%emt 0:00:02]} 40. axb6 {[%emt 0:00:01]} Rxb6 {[%emt 0:00:02]} 41. Bxf6 {[%emt 0:00:02]} Be3 {[%emt 0:00:04]} 42. Re1 {[%emt 0:00:03]} Bd2 {[%emt 0:00:02]} 43. Rd1 {[%emt 0:00:01]} 1-0

[Event "EWIBCC 2019"]
[Site "Monte-Carlo"]
[Date "2019.11.29"]
[Round "8.13"]
[White "Zaksaite, Salomeja"]
[Black "Dornbusch, Tatiana"]
[Result "0-1"]
[ECO "B22"]
[WhiteElo "2202"]
[BlackElo "2269"]
[Annotator "NA"]
[PlyCount "104"]
[EventDate "2019.11.29"]
[EventType "swiss"]
[EventCountry "MNC"]
[SourceTitle "playchess.com"]
[Source "ChessBase"]
[SourceQuality "1"]
[TimeControl "180+2"]

1. e4 {[%emt 0:00:00]} Nf6 {[%emt 0:00:00]} 2. e5 {[%emt 0:00:03]} Nd5 {[%emt 0:00:00]} 3. c4 {[%emt 0:00:04]} Nb6 {[%emt 0:00:01]} 4. c5 {[%emt 0:00:00]} Nd5 {[%emt 0:00:01]} 5. Bc4 {[%emt 0:00:15]} e6 {[%emt 0:00:01]} 6. d4 {[%emt 0:00:03]} d6 {[%emt 0:00:09]} 7. cxd6 {[%emt 0:00:03]} cxd6 {[%emt 0:00:01]} 8. Nf3 {[%emt 0:00:02]} Nc6 {[%emt 0:00:09]} 9. O-O {[%emt 0:00:11]} dxe5 {[%emt 0:00:17]} 10. dxe5 {[%emt 0:00:01]} Be7 {[%emt 0:00:02]} 11. Qe2 {[%emt 0:00:03]} Nb6 {[%emt 0:00:15]} 12. Rd1 {[%emt 0:00:36]} Bd7 {[%emt 0:00:08]} 13. Bb3 {[%emt 0:00:08]} O-O {[%emt 0:00:10]} 14. Nc3 {[%emt 0:00:01]} Na5 {[%emt 0:00:41]} 15. Bc2 {[%emt 0:00:04]} Qc7 {[%emt 0:00:11]} 16. Bg5 {[%emt 0:00:15]} Bc6 {[%emt 0:00:35]} 17. h4 {[%emt 0:00:20]} Nd5 {[%emt 0:00:10]} 18. Bxe7 {[%emt 0:00:13]} Nxc3 {[%emt 0:00:07]} 19. bxc3 {[%emt 0:00:17]} Qxe7 {[%emt 0:00:02]} 20. Bxh7+ {[%emt 0:00:02]} Kxh7 {[%emt 0:00:01]} 21. Ng5+ {[%emt 0:00:01]} Kh6 {[%emt 0:00:12]} 22. Qe3 {[%emt 0:00:25]} Kg6 {[%emt 0:00:17]} 23. Qg3 {[%emt 0:00:05]} Kh6 {[%emt 0:00:03]} 24. Qf4 {[%emt 0:00:01]} g6 {[%emt 0:00:08]} 25. Nxe6+ {[%emt 0:00:29]} Kh7 {[%emt 0:00:01]} 26. Nxf8+ {[%emt 0:00:03]} Rxf8 {[%emt 0:00:00]} 27. Rd6 {[%emt 0:00:02]} b6 {[%emt 0:00:05]} 28. h5 {[%emt 0:00:02]} Rg8 {[%emt 0:00:02]} 29. Rad1 {[%emt 0:00:01]} gxh5 {[%emt 0:00:05]} 30. Qf5+ {[%emt 0:00:01]} Rg6 {[%emt 0:00:01]} 31. Qxh5+ {[%emt 0:00:01]} Kg7 {[%emt 0:00:01]} 32. Rxg6+ {[%emt 0:00:02]} fxg6 {[%emt 0:00:01]} 33. Qh2 {[%emt 0:00:03]} Nc4 {[%emt 0:00:01]} 34. f4 {[%emt 0:00:01]} Ne3 {[%emt 0:00:01]} 35. Rd6 {[%emt 0:00:02]} Nf5 {[%emt 0:00:02]} 36. Rxc6 {[%emt 0:00:01]} Qd7 {[%emt 0:00:01]} 37. Rd6 {[%emt 0:00:07]} Nxd6 {[%emt 0:00:01]} 38. exd6 {[%emt 0:00:01]} Qxd6 {[%emt 0:00:01]} 39. Qg3 {[%emt 0:00:01]} Qd1+ {[%emt 0:00:01]} 40. Kh2 {[%emt 0:00:01]} Qd2 {[%emt 0:00:01]} 41. f5 {[%emt 0:00:02]} Qh6+ {[%emt 0:00:01]} 42. Qh3 {[%emt 0:00:01]} Qxh3+ {[%emt 0:00:01]} 43. Kxh3 {[%emt 0:00:01]} gxf5 {[%emt 0:00:01]} 44. Kg3 {[%emt 0:00:01]} Kf6 {[%emt 0:00:01]} 45. Kf4 {[%emt 0:00:01]} Ke6 {[%emt 0:00:01]} 46. a3 {[%emt 0:00:15]} b5 47. Kf3 {[%emt 0:00:00]} Ke5 {[%emt 0:00:01]} 48. Ke3 {[%emt 0:00:00]} f4+ {[%emt 0:00:02]} 49. Kf3 {[%emt 0:00:06]} Kf5 50. Kf2 {[%emt 0:00:00]} Kg4 {[%emt 0:00:01]} 51. Kf1 {[%emt 0:00:04]} Kg3 52. Kg1 f3 0-1

[Event "EWIBCC 2019"]
[Site "Monte-Carlo"]
[Date "2019.11.29"]
[Round "8.14"]
[White "Mkrtchian, Lilit"]
[Black "Muetsch, Annmarie"]
[Result "1-0"]
[ECO "A26"]
[WhiteElo "2402"]
[BlackElo "2240"]
[Annotator "ChessBase"]
[PlyCount "75"]
[EventDate "2019.11.29"]
[EventType "swiss"]
[EventCountry "MNC"]
[SourceTitle "playchess.com"]
[Source "ChessBase"]
[SourceQuality "1"]
[TimeControl "180+2"]

1. c4 {[%emt 0:00:00]} Nf6 {[%emt 0:00:00]} 2. Nc3 {[%emt 0:00:01]} g6 {[%emt 0:00:00]} 3. g3 {[%emt 0:00:02]} Bg7 {[%emt 0:00:01]} 4. Bg2 {[%emt 0:00:01]} O-O {[%emt 0:00:02]} 5. e4 {[%emt 0:00:02]} d6 {[%emt 0:00:03]} 6. Nge2 {[%emt 0:00:02]} e5 {[%emt 0:00:08]} 7. O-O {[%emt 0:00:04]} Nc6 {[%emt 0:00:02]} 8. d3 {[%emt 0:00:04]} h6 {[%emt 0:00:06]} 9. h3 {[%emt 0:00:10]} a5 {[%emt 0:00:05]} 10. f4 {[%emt 0:00:05]} Nh7 {[%emt 0:00:38]} 11. f5 {[%emt 0:00:13]} Nd4 {[%emt 0:00:26]} 12. Nxd4 {[%emt 0:00:26]} exd4 {[%emt 0:00:02]} 13. Nd5 {[%emt 0:00:12]} g5 {[%emt 0:00:17]} 14. Qh5 {[%emt 0:00:28]} f6 {[%emt 0:00:14]} 15. Kh2 {[%emt 0:01:06]} c6 {[%emt 0:00:05]} 16. Nf4 {[%emt 0:00:01]} gxf4 {[%emt 0:00:03]} 17. gxf4 {[%emt 0:00:01]} Kh8 {[%emt 0:00:24]} 18. Bf3 {[%emt 0:00:02]} Rg8 {[%emt 0:00:10]} 19. Rg1 {[%emt 0:00:02]} Qe7 {[%emt 0:00:08]} 20. Bd2 {[%emt 0:00:07]} Bd7 {[%emt 0:00:01]} 21. Rg2 {[%emt 0:00:05]} Be8 {[%emt 0:00:06]} 22. Qh4 {[%emt 0:00:01]} Bf7 {[%emt 0:00:07]} 23. Bh5 {[%emt 0:00:01]} Bxh5 {[%emt 0:00:14]} 24. Qxh5 {[%emt 0:00:01]} Bf8 {[%emt 0:00:06]} 25. Rg6 {[%emt 0:00:03]} Bg7 {[%emt 0:00:07]} 26. Rag1 {[%emt 0:00:02]} d5 {[%emt 0:00:03]} 27. cxd5 {[%emt 0:00:08]} cxd5 {[%emt 0:00:00]} 28. exd5 {[%emt 0:00:01]} Rae8 {[%emt 0:00:03]} 29. Re1 {[%emt 0:00:15]} Qd7 {[%emt 0:00:01]} 30. Re6 {[%emt 0:00:06]} Rxe6 {[%emt 0:00:10]} 31. dxe6 {[%emt 0:00:02]} Qb5 {[%emt 0:00:02]} 32. Qe2 {[%emt 0:00:03]} Qxb2 {[%emt 0:00:02]} 33. e7 {[%emt 0:00:02]} Re8 {[%emt 0:00:01]} 34. Rg2 {[%emt 0:00:02]} Qb5 {[%emt 0:00:03]} 35. Qe6 {[%emt 0:00:02]} Qc6 {[%emt 0:00:05]} 36. Qf7 {[%emt 0:00:03]} Rg8 {[%emt 0:00:03]} 37. Rxg7 {[%emt 0:00:02]} Rxg7 {[%emt 0:00:02]} 38. e8=Q+ {[%emt 0:00:02]} 1-0

[Event "EWIBCC 2019"]
[Site "Monte-Carlo"]
[Date "2019.11.29"]
[Round "8.15"]
[White "Worek, Joanna"]
[Black "Petrova, Irina"]
[Result "0-1"]
[ECO "B08"]
[WhiteElo "2316"]
[BlackElo "2109"]
[Annotator "NA"]
[PlyCount "68"]
[EventDate "2019.11.29"]
[EventType "swiss"]
[EventCountry "MNC"]
[SourceTitle "playchess.com"]
[Source "ChessBase"]
[SourceQuality "1"]
[TimeControl "180+2"]

1. e4 {[%emt 0:00:00]} d6 {[%emt 0:00:00]} 2. Nf3 {[%emt 0:00:03]} g6 {[%emt 0:00:01]} 3. d4 {[%emt 0:00:01]} Nf6 {[%emt 0:00:01]} 4. Nc3 {[%emt 0:00:02]} Bg7 {[%emt 0:00:01]} 5. Bg5 {[%emt 0:00:09]} c6 {[%emt 0:00:07]} 6. Qd2 {[%emt 0:00:05]} d5 {[%emt 0:00:19]} 7. Bd3 {[%emt 0:01:07]} dxe4 {[%emt 0:00:10]} 8. Nxe4 {[%emt 0:00:01]} Nbd7 {[%emt 0:00:12]} 9. Ng3 {[%emt 0:00:19]} h6 {[%emt 0:00:14]} 10. Be3 {[%emt 0:00:03]} Nb6 {[%emt 0:00:06]} 11. Ne5 {[%emt 0:00:08]} Nbd5 {[%emt 0:00:09]} 12. O-O {[%emt 0:00:07]} Nxe3 {[%emt 0:00:06]} 13. fxe3 {[%emt 0:00:02]} O-O {[%emt 0:00:05]} 14. c4 {[%emt 0:00:02]} Ng4 {[%emt 0:00:22]} 15. Nxg4 {[%emt 0:00:09]} Bxg4 {[%emt 0:00:01]} 16. c5 {[%emt 0:00:10]} e5 {[%emt 0:00:06]} 17. Ne4 {[%emt 0:00:11]} exd4 {[%emt 0:00:05]} 18. Nd6 {[%emt 0:00:01]} dxe3 {[%emt 0:00:11]} 19. Qxe3 {[%emt 0:00:01]} Qg5 {[%emt 0:00:04]} 20. Qxg5 {[%emt 0:00:08]} hxg5 {[%emt 0:00:01]} 21. Nxf7 {[%emt 0:00:09]} Rxf7 {[%emt 0:00:23]} 22. Bc4 {[%emt 0:00:01]} Raf8 {[%emt 0:00:01]} 23. Rxf7 {[%emt 0:00:01]} Rxf7 {[%emt 0:00:02]} 24. Rf1 {[%emt 0:00:01]} Bf5 {[%emt 0:00:03]} 25. g4 {[%emt 0:00:01]} Bd4+ {[%emt 0:00:01]} 26. Kg2 {[%emt 0:00:05]} Be4+ {[%emt 0:00:01]} 27. Kg3 {[%emt 0:00:11]} Bd5 {[%emt 0:00:03]} 28. Bxd5 {[%emt 0:00:04]} cxd5 {[%emt 0:00:02]} 29. Rd1 {[%emt 0:00:01]} Bf2+ {[%emt 0:00:03]} 30. Kg2 {[%emt 0:00:01]} d4 {[%emt 0:00:01]} 31. b4 {[%emt 0:00:02]} Be3 {[%emt 0:00:01]} 32. b5 {[%emt 0:00:02]} Rf2+ {[%emt 0:00:01]} 33. Kg3 {[%emt 0:00:01]} Rxa2 {[%emt 0:00:02]} 34. Kf3 {[%emt 0:00:04]} Rc2 {[%emt 0:00:02]} 0-1

[Event "EWIBCC 2019"]
[Site "Monte-Carlo"]
[Date "2019.11.29"]
[Round "8.16"]
[White "Unuk, Laura"]
[Black "Berzina, Ilze"]
[Result "1-0"]
[ECO "D11"]
[WhiteElo "2298"]
[BlackElo "2211"]
[Annotator "ChessBase"]
[PlyCount "63"]
[EventDate "2019.11.29"]
[EventType "swiss"]
[EventCountry "MNC"]
[SourceTitle "playchess.com"]
[Source "ChessBase"]
[SourceQuality "1"]
[TimeControl "180+2"]

1. d4 {[%emt 0:00:00]} d5 {[%emt 0:00:00]} 2. c4 {[%emt 0:00:01]} c6 {[%emt 0:00:00]} 3. Nf3 {[%emt 0:00:01]} Nf6 {[%emt 0:00:01]} 4. Qc2 {[%emt 0:00:02]} Bg4 {[%emt 0:00:08]} 5. Ne5 {[%emt 0:00:07]} Be6 {[%emt 0:00:11]} 6. e3 {[%emt 0:00:32]} Nbd7 {[%emt 0:00:07]} 7. f4 {[%emt 0:00:33]} Nxe5 {[%emt 0:00:06]} 8. fxe5 {[%emt 0:00:03]} Ne4 {[%emt 0:00:04]} 9. Bd3 {[%emt 0:00:05]} Bf5 {[%emt 0:00:17]} 10. Nc3 {[%emt 0:00:22]} e6 {[%emt 0:00:01]} 11. O-O {[%emt 0:00:06]} Nxc3 {[%emt 0:00:12]} 12. Bxf5 {[%emt 0:00:07]} exf5 {[%emt 0:00:03]} 13. bxc3 {[%emt 0:00:23]} g6 {[%emt 0:00:03]} 14. cxd5 {[%emt 0:00:02]} cxd5 {[%emt 0:00:28]} 15. c4 {[%emt 0:00:01]} dxc4 {[%emt 0:00:31]} 16. Qxc4 {[%emt 0:00:02]} Qd7 {[%emt 0:00:13]} 17. Bb2 {[%emt 0:00:11]} Rc8 {[%emt 0:00:06]} 18. Qb3 {[%emt 0:00:04]} Be7 {[%emt 0:00:07]} 19. d5 {[%emt 0:00:02]} O-O {[%emt 0:00:15]} 20. Rad1 {[%emt 0:00:11]} Bc5 {[%emt 0:00:12]} 21. e6 {[%emt 0:00:16]} Qe7 {[%emt 0:00:04]} 22. Kh1 {[%emt 0:00:09]} f6 {[%emt 0:00:13]} 23. Qd3 {[%emt 0:00:11]} Bd6 {[%emt 0:00:01]} 24. e4 {[%emt 0:00:01]} fxe4 {[%emt 0:00:03]} 25. Qxe4 {[%emt 0:00:01]} Rc5 {[%emt 0:00:13]} 26. Rf3 {[%emt 0:00:03]} Rb5 {[%emt 0:00:06]} 27. Bc3 {[%emt 0:00:04]} Rc8 {[%emt 0:00:02]} 28. Bxf6 {[%emt 0:00:02]} Qf8 {[%emt 0:00:04]} 29. Rdf1 {[%emt 0:00:01]} Qh6 {[%emt 0:00:03]} 30. Be5 {[%emt 0:00:04]} Bxe5 {[%emt 0:00:03]} 31. Qxe5 {[%emt 0:00:01]} Rbc5 {[%emt 0:00:05]} 32. e7 {[%emt 0:00:16]} 1-0

[Event "EWIBCC 2019"]
[Site "Monte-Carlo"]
[Date "2019.11.29"]
[Round "8.18"]
[White "Limanovska, Elizabete"]
[Black "Solozhenkina, Elizaveta"]
[Result "1/2-1/2"]
[ECO "B51"]
[WhiteElo "2178"]
[BlackElo "2314"]
[Annotator "ChessBase"]
[PlyCount "151"]
[EventDate "2019.11.29"]
[EventType "swiss"]
[EventCountry "MNC"]
[SourceTitle "playchess.com"]
[Source "ChessBase"]
[SourceQuality "1"]
[TimeControl "180+2"]

1. e4 {[%emt 0:00:00]} c5 {[%emt 0:00:00]} 2. Nf3 {[%emt 0:00:00]} d6 {[%emt 0:00:00]} 3. Bb5+ {[%emt 0:03:06]} Nd7 {[%emt 0:03:06]} 4. O-O {[%emt 0:00:00]} a6 {[%emt 0:00:00]} 5. Bd3 {[%emt 0:00:00]} Ngf6 {[%emt 0:00:00]} 6. Re1 {[%emt 0:00:00]} Qc7 {[%emt 0:00:00]} 7. c3 {[%emt 0:00:00]} Ne5 {[%emt 0:00:00]} 8. Nxe5 {[%emt 0:00:00]} dxe5 {[%emt 0:00:00]} 9. Bc2 {[%emt 0:00:00]} e6 {[%emt 0:00:00]} 10. d3 {[%emt 0:00:00]} Be7 {[%emt 0:00:00]} 11. Be3 {[%emt 0:00:00]} O-O {[%emt 0:00:00]} 12. Nd2 {[%emt 0:00:00]} Rd8 {[%emt 0:00:00]} 13. Qe2 {[%emt 0:00:00]} b6 {[%emt 0:00:00]} 14. Rac1 {[%emt 0:00:00]} Bb7 {[%emt 0:00:00]} 15. f3 {[%emt 0:00:00]} Rac8 {[%emt 0:00:00]} 16. Qf2 {[%emt 0:00:00]} a5 {[%emt 0:00:00]} 17. Kh1 {[%emt 0:00:00]} Ba6 {[%emt 0:00:00]} 18. d4 {[%emt 0:00:00]} exd4 {[%emt 0:00:00]} 19. cxd4 {[%emt 0:00:00]} cxd4 {[%emt 0:00:00]} 20. Bxd4 {[%emt 0:00:00]} Bc5 {[%emt 0:00:00]} 21. Bxc5 {[%emt 0:00:00]} Qxc5 {[%emt 0:00:00]} 22. Qxc5 {[%emt 0:00:00]} Rxc5 {[%emt 0:00:00]} 23. Nb3 {[%emt 0:00:00]} Rc7 {[%emt 0:00:00]} 24. e5 {[%emt 0:00:00]} Nd5 {[%emt 0:00:00]} 25. Be4 {[%emt 0:00:00]} Rdc8 {[%emt 0:00:13]} 26. Rxc7 {[%emt 0:00:00]} Rxc7 {[%emt 0:00:01]} 27. Rc1 {[%emt 0:00:00]} Rxc1+ 28. Nxc1 {[%emt 0:00:00]} Ne3 {[%emt 0:00:18]} 29. Bd3 {[%emt 0:00:03]} Bb7 {[%emt 0:00:05]} 30. Kg1 {[%emt 0:00:05]} h6 {[%emt 0:00:01]} 31. Kf2 {[%emt 0:00:01]} Nd1+ {[%emt 0:00:04]} 32. Ke2 {[%emt 0:00:01]} Nxb2 {[%emt 0:00:01]} 33. Bb5 {[%emt 0:00:00]} a4 {[%emt 0:00:03]} 34. Kd2 {[%emt 0:00:07]} a3 {[%emt 0:00:04]} 35. Kc2 {[%emt 0:00:05]} Bd5 {[%emt 0:00:02]} 36. Nb3 {[%emt 0:00:21]} Nc4 {[%emt 0:00:04]} 37. Bxc4 {[%emt 0:00:21]} Bxc4 {[%emt 0:00:01]} 38. Kc3 {[%emt 0:00:01]} Bf1 {[%emt 0:00:09]} 39. g3 {[%emt 0:00:01]} Kf8 {[%emt 0:00:02]} 40. Kb4 {[%emt 0:00:00]} Ke7 {[%emt 0:00:01]} 41. Kxa3 {[%emt 0:00:01]} Kd7 {[%emt 0:00:00]} 42. Kb4 {[%emt 0:00:01]} Kc6 {[%emt 0:00:02]} 43. Nd2 {[%emt 0:00:03]} Be2 {[%emt 0:00:02]} 44. a4 {[%emt 0:00:05]} Kd5 {[%emt 0:00:01]} 45. f4 {[%emt 0:00:03]} h5 {[%emt 0:00:03]} 46. Kc3 {[%emt 0:00:01]} g6 {[%emt 0:00:02]} 47. Nb1 {[%emt 0:00:04]} Ke4 {[%emt 0:00:02]} 48. Kd2 {[%emt 0:00:01]} Kf3 {[%emt 0:00:02]} 49. Nc3 {[%emt 0:00:01]} Bc4 {[%emt 0:00:05]} 50. Nd1 {[%emt 0:00:04]} Bb3 {[%emt 0:00:02]} 51. Ne3 {[%emt 0:00:03]} Bxa4 {[%emt 0:00:02]} 52. Nc4 {[%emt 0:00:01]} b5 {[%emt 0:00:01]} 53. Nd6 {[%emt 0:00:01]} b4 {[%emt 0:00:02]} 54. Kc1 {[%emt 0:00:01]} Ke3 {[%emt 0:00:01]} 55. Nxf7 {[%emt 0:00:02]} Kd3 {[%emt 0:00:01]} 56. Kb2 {[%emt 0:00:01]} Ke2 {[%emt 0:00:02]} 57. Ng5 {[%emt 0:00:01]} Bd7 {[%emt 0:00:02]} 58. Kb3 {[%emt 0:00:00]} Kf2 {[%emt 0:00:01]} 59. Kxb4 {[%emt 0:00:01]} Kg2 {[%emt 0:00:01]} 60. Kc5 {[%emt 0:00:02]} Kxh2 {[%emt 0:00:02]} 61. Ne4 {[%emt 0:00:00]} Ba4 {[%emt 0:00:03]} 62. Kd6 {[%emt 0:00:01]} Bc2 {[%emt 0:00:03]} 63. Nc3 {[%emt 0:00:05]} Bf5 {[%emt 0:00:02]} 64. Ne2 {[%emt 0:00:01]} Kg2 {[%emt 0:00:01]} 65. Ke7 {[%emt 0:00:05]} Kf3 {[%emt 0:00:01]} 66. Nd4+ {[%emt 0:00:01]} Kxg3 {[%emt 0:00:01]} 67. Nxf5+ {[%emt 0:00:01]} gxf5 {[%emt 0:00:01]} 68. Kxe6 {[%emt 0:00:01]} h4 {[%emt 0:00:01]} 69. Kxf5 {[%emt 0:00:01]} h3 {[%emt 0:00:00]} 70. e6 {[%emt 0:00:01]} h2 {[%emt 0:00:01]} 71. e7 {[%emt 0:00:01]} h1=Q {[%emt 0:00:03]} 72. e8=Q {[%emt 0:00:17]} Qd5+ {[%emt 0:00:10]} 73. Qe5 {[%emt 0:00:00]} Qf7+ {[%emt 0:00:03]} 74. Ke4 {[%emt 0:00:00]} Qc4+ {[%emt 0:00:01]} 75. Qd4 {[%emt 0:00:00]} Qxd4+ {[%emt 0:00:02]} 76. Kxd4 {[%emt 0:00:08]} 1/2-1/2

[Event "EWIBCC 2019"]
[Site "Monte-Carlo"]
[Date "2019.11.29"]
[Round "8.19"]
[White "Belenkaya, Dina"]
[Black "Kazarian, Anna-Maja"]
[Result "1-0"]
[ECO "A07"]
[WhiteElo "2302"]
[BlackElo "2109"]
[Annotator "ChessBase"]
[PlyCount "135"]
[EventDate "2019.11.29"]
[EventType "swiss"]
[EventCountry "MNC"]
[SourceTitle "playchess.com"]
[Source "ChessBase"]
[SourceQuality "1"]
[TimeControl "180+2"]

1. e4 {[%emt 0:00:00]} c6 {[%emt 0:00:00]} 2. d3 {[%emt 0:00:02]} d5 {[%emt 0:00:01]} 3. Nd2 {[%emt 0:00:01]} Nf6 {[%emt 0:00:06]} 4. g3 {[%emt 0:00:02]} g6 {[%emt 0:00:19]} 5. Bg2 {[%emt 0:00:01]} Bg7 {[%emt 0:02:44]} 6. Ngf3 {[%emt 0:00:02]} O-O {[%emt 0:00:00]} 7. O-O {[%emt 0:00:02]} e6 {[%emt 0:00:00]} 8. Qe2 {[%emt 0:00:04]} b6 {[%emt 0:00:00]} 9. c3 {[%emt 0:00:03]} Ba6 {[%emt 0:00:00]} 10. e5 {[%emt 0:00:16]} Nfd7 {[%emt 0:00:00]} 11. c4 {[%emt 0:00:01]} Qc7 {[%emt 0:00:00]} 12. Re1 {[%emt 0:00:01]} Bb7 {[%emt 0:00:00]} 13. b3 {[%emt 0:00:02]} Na6 {[%emt 0:00:00]} 14. Ba3 {[%emt 0:00:02]} c5 {[%emt 0:00:00]} 15. Bb2 {[%emt 0:00:17]} Nb4 {[%emt 0:00:00]} 16. Nf1 {[%emt 0:00:08]} d4 {[%emt 0:00:00]} 17. Bc1 {[%emt 0:00:24]} Rab8 {[%emt 0:00:00]} 18. Bf4 {[%emt 0:00:02]} a6 {[%emt 0:00:00]} 19. a3 {[%emt 0:00:02]} Nc6 {[%emt 0:00:00]} 20. h4 {[%emt 0:00:14]} b5 {[%emt 0:00:00]} 21. h5 {[%emt 0:00:08]} Na5 {[%emt 0:00:00]} 22. N1d2 {[%emt 0:00:03]} bxc4 {[%emt 0:00:00]} 23. bxc4 {[%emt 0:00:01]} Bc6 {[%emt 0:00:00]} 24. Ne4 {[%emt 0:00:33]} Bxe4 {[%emt 0:00:00]} 25. Qxe4 {[%emt 0:00:02]} Rb2 {[%emt 0:00:08]} 26. Ng5 {[%emt 0:00:07]} h6 {[%emt 0:00:06]} 27. Nf3 {[%emt 0:00:03]} Qb7 {[%emt 0:00:09]} 28. Qxb7 {[%emt 0:00:07]} Nxb7 {[%emt 0:00:01]} 29. Rab1 {[%emt 0:00:01]} Rxb1 {[%emt 0:00:03]} 30. Rxb1 {[%emt 0:00:01]} Na5 {[%emt 0:00:03]} 31. hxg6 {[%emt 0:00:02]} fxg6 {[%emt 0:00:00]} 32. Bd2 {[%emt 0:00:12]} Nc6 {[%emt 0:00:04]} 33. Rb7 {[%emt 0:00:10]} Ncxe5 {[%emt 0:00:02]} 34. Nxe5 {[%emt 0:00:02]} Nxe5 {[%emt 0:00:01]} 35. Be4 {[%emt 0:00:02]} Nf3+ {[%emt 0:00:12]} 36. Bxf3 {[%emt 0:00:02]} Rxf3 {[%emt 0:00:01]} 37. Rb3 {[%emt 0:00:07]} e5 {[%emt 0:00:02]} 38. Kg2 {[%emt 0:00:01]} Rf6 {[%emt 0:00:01]} 39. Rb7 {[%emt 0:00:04]} Re6 {[%emt 0:00:02]} 40. f3 {[%emt 0:00:01]} Kh7 {[%emt 0:00:01]} 41. Ba5 {[%emt 0:00:03]} g5 {[%emt 0:00:02]} 42. g4 {[%emt 0:00:01]} Kg6 {[%emt 0:00:00]} 43. Rc7 {[%emt 0:00:01]} Bf8 {[%emt 0:00:02]} 44. Rc8 {[%emt 0:00:02]} Be7 {[%emt 0:00:02]} 45. Kf2 {[%emt 0:00:01]} h5 {[%emt 0:00:02]} 46. gxh5+ {[%emt 0:00:01]} Kxh5 {[%emt 0:00:01]} 47. Kg3 {[%emt 0:00:03]} Kg6 {[%emt 0:00:06]} 48. Kg4 {[%emt 0:00:03]} Rf6 {[%emt 0:00:03]} 49. Re8 {[%emt 0:00:06]} Rf4+ {[%emt 0:00:01]} 50. Kg3 {[%emt 0:00:01]} Kf7 {[%emt 0:00:01]} 51. Ra8 {[%emt 0:00:02]} Rf6 {[%emt 0:00:01]} 52. Ra7 {[%emt 0:00:01]} Re6 {[%emt 0:00:03]} 53. Bd8 {[%emt 0:00:03]} Kf6 {[%emt 0:00:05]} 54. Bxe7+ {[%emt 0:00:02]} Rxe7 {[%emt 0:00:13]} 55. Rxa6+ {[%emt 0:00:01]} Kf5 {[%emt 0:00:00]} 56. Ra5 {[%emt 0:00:03]} Rc7 {[%emt 0:00:00]} 57. a4 {[%emt 0:00:02]} Rc6 {[%emt 0:00:00]} 58. Ra8 {[%emt 0:00:03]} Rb6 {[%emt 0:00:00]} 59. a5 {[%emt 0:00:01]} Rb3 {[%emt 0:00:00]} 60. a6 {[%emt 0:00:00]} Rxd3 {[%emt 0:00:00]} 61. a7 {[%emt 0:00:01]} Ra3 {[%emt 0:00:05]} 62. Rf8+ {[%emt 0:00:01]} Ke6 {[%emt 0:00:05]} 63. a8=Q {[%emt 0:00:02]} Rxa8 {[%emt 0:00:02]} 64. Rxa8 {[%emt 0:00:01]} d3 {[%emt 0:00:02]} 65. Rd8 {[%emt 0:00:02]} e4 {[%emt 0:00:01]} 66. fxe4 {[%emt 0:00:01]} Ke5 {[%emt 0:00:01]} 67. Rxd3 {[%emt 0:00:02]} Kxe4 {[%emt 0:00:10]} 68. Rd5 {[%emt 0:00:51] Kxd5} 1-0